bitfinex-derivatives/quotes_SOLF0:USTF0_20260213
["timestamp","ask_amount","ask_price","bid_price","bid_amount"]
[1770957525601,3.54317222,78.72,78.691,11.4468]
[1770957527803,3.95514671,78.719,78.683,11.4479]
[1770957528007,3.95514671,78.717,78.683,11.4479]
[1770957528203,3.95514671,78.717,78.683,15.28759477]
[1770957528504,3.95514671,78.717,78.684,3.83969477]
[1770957532110,3.95514671,78.715,78.684,3.83969477]
[1770957532312,3.95514671,78.713,78.683,11.4479]
[1770957532504,3.95514671,78.712,78.683,11.4479]
[1770957532706,9.39045919,78.719,78.688,3.84778254]
[1770957532905,9.39079484,78.727,78.688,3.84778254]
[1770957533102,9.39079484,78.726,78.688,3.84778254]
[1770957533307,9.39079484,78.725,78.688,3.84778254]
[1770957533610,9.39079484,78.724,78.688,3.84778254]
[1770957533810,9.39079484,78.723,78.688,3.84778254]
[1770957534118,9.39079484,78.727,78.688,3.84778254]
[1770957534309,9.39079484,78.726,78.688,3.84778254]
[1770957534508,9.39079484,78.725,78.688,3.84778254]
[1770957534708,9.39079484,78.724,78.688,3.84778254]
[1770957534909,15.39664671,78.728,78.688,3.84778254]
[1770957535109,13.34399439,78.727,78.688,3.84778254]
[1770957535315,9.38884768,78.726,78.688,3.84778254]
[1770957535515,9.38884768,78.725,78.688,3.84778254]
[1770957535713,9.38884768,78.724,78.688,3.84778254]
[1770957535913,9.38884768,78.726,78.688,3.84778254]
[1770957536112,9.38884768,78.725,78.688,3.84778254]
[1770957536314,9.38884768,78.726,78.688,3.84778254]
[1770957536510,9.38884768,78.725,78.69,3.7765404]
[1770957536712,9.38884768,78.729,78.691,3.7765404]
[1770957536910,9.38884768,78.735,78.691,3.7765404]
[1770957537105,9.38884768,78.734,78.691,3.7765404]
[1770957537414,9.38884768,78.733,78.691,3.7765404]
[1770957537614,3.54317222,78.73,78.694,3.77140076]
[1770957538015,12.9320199,78.73,78.694,3.77140076]
[1770957538214,3.54317222,78.73,78.694,3.77140076]
[1770957539319,12.9320199,78.73,78.694,3.77140076]
[1770957539517,3.54317222,78.73,78.696,11.4461]
[1770957539706,9.38884768,78.729,78.696,11.4461]
[1770957539911,3.54317222,78.73,78.696,11.4461]
[1770957540312,3.95514671,78.719,78.685,11.4476]
[1770957541921,9.38884768,78.727,78.69,3.81218228]
[1770957542418,9.38884768,78.728,78.69,3.81218228]
[1770957542619,9.38884768,78.727,78.69,3.81218228]
[1770957542820,3.54317222,78.72,78.69,3.81218228]
[1770957543325,3.54317222,78.72,78.692,11.4465]
[1770957544721,4.09345931,78.719,78.692,11.4465]
[1770957544919,4.09345931,78.719,78.661,138.7]
[1770957544920,3.54317222,78.71,78.671,3.84600215]
[1770957545124,4.09345931,78.709,78.671,3.84600215]
[1770957545822,3.54317222,78.7,78.676,11.4489]
[1770957546022,4.09345931,78.689,78.653,3.84600215]
[1770957546226,140.14,78.723,78.636,345.54043599]
[1770957546227,3.54317222,78.67,78.638,3.84600215]
[1770957547715,3.54317222,78.67,78.638,15.30040215]
[1770957548919,4.09345931,78.669,78.638,11.4544]
[1770957551823,4.09345931,78.669,78.628,11.4558]
[1770957552022,3.54317222,78.66,78.628,11.4558]
[1770957552423,3.54317222,78.65,78.601,3.9729101]
[1770957552731,3.54317222,78.65,78.611,3.9729101]
[1770957553624,4.09345931,78.659,78.621,3.9729101]
[1770957555125,4.09345931,78.659,78.625,11.4564]
[1770957555327,4.09345931,78.659,78.626,3.86662163]
[1770957556334,3.54317222,78.66,78.626,3.86662163]
[1770957559138,3.54317222,78.67,78.631,3.86992433]
[1770957559534,4.09345931,78.669,78.631,3.86992433]
[1770957559739,4.09345931,78.669,78.633,3.86992433]
[1770957563042,4.09345931,78.659,78.622,3.82696635]
[1770957563346,4.09345931,78.659,78.556,23.75408334]
[1770957563347,7.63663153,78.65,78.611,3.82696635]
[1770957563540,7.63663153,78.65,78.616,11.4577]
[1770957563741,4.09345931,78.639,78.6,3.54317222]
[1770957564240,4.09345931,78.639,78.592,3.82696635]
[1770957564831,4.09345931,78.639,78.602,11.4598]
[1770957565833,4.09345931,78.629,78.591,11.4613]
[1770957566140,3.54317222,78.63,78.591,11.4613]
[1770957566141,3.54317222,78.63,78.591,3.82358884]
[1770957566443,4.09345931,78.64,78.601,3.82358884]
[1770957567338,7.63663153,78.64,78.601,3.82358884]
[1770957567735,7.63663153,78.64,78.602,11.4598]
[1770957567934,7.63663153,78.64,78.603,3.8221673]
[1770957568237,3.54317222,78.65,78.611,3.8221673]
[1770957568837,4.09345931,78.649,78.614,11.458]
[1770957569037,3.54317222,78.64,78.611,3.8221673]
[1770957569232,3.54317222,78.64,78.6,3.8194927]
[1770957569436,4.09345931,78.639,78.6,3.8194927]
[1770957570434,4.03197585,78.629,78.593,11.461]
[1770957571343,9.3421076,78.661,78.543,22.9367]
[1770957571344,4.03197585,78.619,78.583,11.4625]
[1770957572231,4.03197585,78.609,78.564,3.76913717]
[1770957572439,3.54317222,78.6,78.564,3.76913717]
[1770957572639,4.03197585,78.609,78.564,3.76913717]
[1770957573041,4.03197585,78.609,78.576,11.4636]
[1770957576747,3.54317222,78.6,78.564,3.76913717]
[1770957577043,3.95474518,78.599,78.564,3.76913717]
[1770957577244,3.95474518,78.599,78.551,3.75615024]
[1770957577551,3.54317222,78.59,78.557,11.4662]
[1770957578854,3.95474518,78.599,78.564,11.4653]
[1770957579552,3.54317222,78.62,78.574,3.79636173]
[1770957579849,3.54317222,78.61,78.574,3.79636173]
[1770957580051,3.95474518,78.609,78.562,3.79636173]
[1770957580253,3.54317222,78.6,78.562,3.79636173]
[1770957580453,3.95474518,78.609,78.562,3.79636173]
[1770957581158,3.95474518,78.609,78.57,3.55510279]
[1770957581750,3.95474518,78.609,78.574,11.4638]
[1770957582353,138.36,78.627,78.536,139.2]
[1770957582354,3.95474518,78.627,78.583,3.78412628]
[1770957582656,3.95474518,78.619,78.583,3.78412628]
[1770957582859,3.95474518,78.619,78.571,3.78412628]
[1770957583759,3.95474518,78.619,78.581,3.75819675]
[1770957584756,3.95474518,78.619,78.583,3.75819675]
[1770957585745,3.95474518,78.619,78.538,22.9381]
[1770957585746,3.95474518,78.617,78.575,3.68629573]
[1770957585960,3.95474518,78.617,78.58,3.55510279]
[1770957586350,3.95474518,78.617,78.58,7.24139852]
[1770957586853,3.95474518,78.628,78.583,3.68629573]
[1770957588848,3.95474518,78.628,78.585,3.68114311]
[1770957589160,3.95474518,78.628,78.584,11.4623]
[1770957589161,499.18047523,78.635,78.601,3.68801699]
[1770957590856,3.95474518,78.639,78.601,3.68801699]
[1770957594054,3.95474518,78.645,78.604,3.65014176]
[1770957594249,3.55510279,78.64,78.604,3.65014176]
[1770957594856,3.55510279,78.65,78.614,3.63533809]
[1770957595263,3.95474518,78.649,78.614,3.63533809]
[1770957597059,3.95474518,78.648,78.614,3.63533809]
[1770957597959,3.95474518,78.648,78.559,38.19]
[1770957597960,3.95474518,78.629,78.59,3.55510279]
[1770957598261,3.95474518,78.652,78.611,3.63120321]
[1770957598563,3.55510279,78.65,78.611,3.63120321]
[1770957598853,7.50984797,78.65,78.611,3.63120321]
[1770957599054,3.95474518,78.649,78.611,3.63120321]
[1770957599758,3.95474518,78.649,78.618,11.4574]
[1770957599954,3.95474518,78.649,78.611,3.63120321]
[1770957600150,3.55510279,78.64,78.6,3.55510279]
[1770957600349,3.55510279,78.64,78.601,3.57781979]
[1770957600660,3.55510279,78.64,78.61,11.4585]
[1770957600863,3.95474518,78.649,78.61,11.4585]
[1770957601963,9.38128075,78.658,78.616,3.64657162]
[1770957602156,3.55510279,78.65,78.616,3.64657162]
[1770957602657,3.55510279,78.65,78.619,11.4572]
[1770957606059,3.91034027,78.649,78.619,11.4572]
[1770957606664,3.91034027,78.649,78.623,11.4566]
[1770957606962,3.91034027,78.649,78.616,3.64657162]
[1770957607556,3.91034027,78.649,78.618,11.4574]
[1770957607754,3.55510279,78.64,78.604,3.65620057]
[1770957607957,3.91034027,78.639,78.604,3.65620057]
[1770957608158,7.46544306,78.63,78.6,11.46]
[1770957608361,3.91034027,78.629,78.593,3.65620057]
[1770957608557,3.91034027,78.629,78.581,3.65620057]
[1770957608760,3.91034027,78.629,78.57,104.32]
[1770957608761,3.55510279,78.61,78.571,3.65620057]
[1770957609470,3.91034027,78.619,78.571,3.65620057]
[1770957609768,3.91034027,78.619,78.58,15.01800279]
[1770957610271,3.91034027,78.619,78.584,15.14496481]
[1770957610664,3.91034027,78.629,78.585,3.68266481]
[1770957610966,7.46544306,78.64,78.591,3.68280576]
[1770957611268,7.46544306,78.64,78.601,3.68280576]
[1770957611961,3.91034027,78.639,78.601,3.68280576]
[1770957612770,7.46544306,78.63,78.59,15.01660279]
[1770957612971,3.91034027,78.629,78.59,15.01660279]
[1770957613158,3.91034027,78.629,78.59,18.69410219]
[1770957613362,3.91034027,78.629,78.591,3.6774994]
[1770957615270,7.46544306,78.64,78.6,3.55510279]
[1770957615466,3.91034027,78.639,78.6,3.55510279]
[1770957616165,3.91034027,78.639,78.596,3.70378316]
[1770957616767,3.91034027,78.639,78.6,11.46]
[1770957617972,3.91034027,78.639,78.6,15.16267933]
[1770957620674,3.91034027,78.639,78.604,3.70370623]
[1770957621567,9.38977177,78.648,78.609,3.7039582]
[1770957621770,7.46544306,78.65,78.609,3.7039582]
[1770957621969,3.91034027,78.649,78.609,3.7039582]
[1770957622275,3.55510279,78.64,78.609,3.7039582]
[1770957622672,7.46544306,78.64,78.6,3.55510279]
[1770957622868,3.91034027,78.639,78.6,3.7039582]
[1770957623873,3.91034027,78.639,78.601,11.4598]
[1770957624078,3.55510279,78.63,78.601,11.4598]
[1770957624971,3.91034027,78.629,78.591,11.4613]
[1770957625169,13.30011204,78.629,78.591,11.4613]
[1770957626167,3.91034027,78.627,78.591,11.4613]
[1770957626374,3.55510279,78.62,78.591,11.4613]
[1770957628778,3.55510279,78.61,78.583,11.4625]
[1770957628974,3.91034027,78.609,78.561,3.83525049]
[1770957629280,3.55510279,78.6,78.561,3.83525049]
[1770957629577,3.55510279,78.6,78.562,11.4656]
[1770957629765,3.55510279,78.6,78.561,3.83525049]
[1770957629766,3.91034027,78.599,78.561,3.83525049]
[1770957629970,9.38655176,78.598,78.561,3.83525049]
[1770957630178,3.91034027,78.599,78.561,3.83525049]
[1770957630376,3.91034027,78.599,78.563,3.83984029]
[1770957630574,3.55510279,78.61,78.563,3.83984029]
[1770957630774,9.37897872,78.609,78.571,3.83984029]
[1770957630968,9.37897872,78.608,78.571,3.83984029]
[1770957631173,3.55510279,78.61,78.571,3.83984029]
[1770957631473,9.37852395,78.609,78.571,3.83984029]
[1770957631668,9.37852395,78.608,78.571,3.83984029]
[1770957631875,3.55510279,78.61,78.573,3.8475103]
[1770957632072,9.37853137,78.609,78.573,3.8475103]
[1770957632275,9.37853137,78.608,78.573,3.8475103]
[1770957632472,9.37853137,78.609,78.573,3.8475103]
[1770957632678,9.37853137,78.608,78.573,3.8475103]
[1770957632874,4.01609811,78.608,78.565,3.81732937]
[1770957633172,9.37853137,78.607,78.565,3.81732937]
[1770957633878,9.37853137,78.607,78.566,15.27826079]
[1770957634280,4.01609811,78.608,78.566,15.27826079]
[1770957634476,13.39462948,78.608,78.566,15.27826079]
[1770957634678,4.01609811,78.608,78.566,15.27826079]
[1770957634971,4.01609811,78.608,78.56,3.55510279]
[1770957634972,3.87487188,78.599,78.56,3.55510279]
[1770957635175,3.87487188,78.599,78.561,3.841161]
[1770957636479,3.87487188,78.599,78.56,3.55510279]
[1770957637481,11.4608,78.596,78.548,15.308761]
[1770957637682,3.87487188,78.595,78.55,7.37894666]
[1770957637874,3.87487188,78.595,78.551,3.82384387]
[1770957638075,3.87487188,78.595,78.553,3.82384387]
[1770957639981,3.55510279,78.6,78.553,3.82384387]
[1770957639982,3.87487188,78.593,78.553,3.82384387]
[1770957641274,3.87487188,78.589,78.553,3.82384387]
[1770957643674,3.87487188,78.599,78.561,3.76835683]
[1770957644775,3.87487188,78.599,78.562,15.23395683]
[1770957646077,3.87487188,78.599,78.562,3.76835683]
[1770957647480,3.87487188,78.599,78.56,11.4658]
[1770957648978,3.87487188,78.598,78.566,11.4649]
[1770957649283,3.87487188,78.589,78.551,3.77355653]
[1770957649985,3.87487188,78.579,78.545,11.468]
[1770957650382,3.87487188,78.569,78.535,11.4695]
[1770957650991,3.87487188,78.569,78.535,15.24447994]
[1770957651584,3.87487188,78.569,78.535,3.77497994]
[1770957652390,3.87487188,78.569,78.535,15.24447994]
[1770957653184,3.87487188,78.569,78.53,3.55611261]
[1770957653387,3.87487188,78.569,78.527,11.4707]
[1770957654997,3.87487188,78.569,78.53,11.4702]
[1770957655597,3.87487188,78.569,78.528,3.77411629]
[1770957656492,3.87487188,78.569,78.529,11.4704]
[1770957657192,3.87487188,78.569,78.528,3.77411629]
[1770957657395,3.87487188,78.559,78.52,3.55611261]
[1770957657595,3.87487188,78.559,78.521,3.74768095]
[1770957661600,3.87487188,78.559,78.524,3.74731502]
[1770957661794,15.02061261,78.57,78.524,3.74731502]
[1770957661995,4.1437712,78.569,78.524,3.74731502]
[1770957662706,4.1437712,78.569,78.531,3.74731502]
[1770957663704,4.1437712,78.569,78.531,15.21741502]
[1770957663903,4.1437712,78.569,78.532,3.73490667]
[1770957664094,11.4639,78.574,78.532,3.73490667]
[1770957665306,11.4639,78.574,78.535,3.73223746]
[1770957665502,11.4638,78.575,78.535,3.73223746]
[1770957665702,11.23651041,78.575,78.535,3.73223746]
[1770957665904,3.55611261,78.58,78.535,3.73223746]
[1770957665905,4.1437712,78.574,78.535,3.73223746]
[1770957666104,3.55611261,78.57,78.535,3.73223746]
[1770957666703,11.464,78.573,78.535,3.73223746]
[1770957667304,15.6077712,78.573,78.535,3.73223746]
[1770957667504,4.1437712,78.572,78.535,3.73223746]
[1770957668511,4.1437712,78.572,78.536,15.19933913]
[1770957668708,4.1437712,78.572,78.537,3.72993913]
[1770957669516,4.1437712,78.593,78.551,3.73866594]
[1770957670013,4.1437712,78.589,78.551,3.73866594]
[1770957670811,4.1437712,78.589,78.552,11.467]
[1770957671204,4.1437712,78.589,78.552,3.7617787]
[1770957672807,4.1437712,78.589,78.559,11.466]
[1770957673210,13.52230257,78.589,78.559,11.466]
[1770957673811,4.1437712,78.6,78.563,15.02191999]
[1770957674011,9.37853137,78.599,78.563,15.02191999]
[1770957674316,4.1437712,78.6,78.563,15.02191999]
[1770957674317,9.37853137,78.598,78.563,15.02191999]
[1770957674517,9.37853137,78.597,78.563,15.02191999]
[1770957674718,9.37853137,78.599,78.563,15.02191999]
[1770957675014,4.1437712,78.579,78.527,3.56399881]
[1770957675219,4.1437712,78.579,78.531,3.56399881]
[1770957675418,4.1437712,78.578,78.54,3.55611261]
[1770957675620,4.1437712,78.578,78.541,11.4686]
[1770957676816,4.1437712,78.578,78.541,15.03259881]
[1770957677315,4.1437712,78.578,78.543,15.21845739]
[1770957678516,4.1437712,78.578,78.544,3.75025739]
[1770957678715,9.38305935,78.587,78.555,3.75025739]
[1770957678921,4.1437712,78.591,78.555,3.75025739]
[1770957679421,3.55611261,78.59,78.555,3.75025739]
[1770957679823,3.55611261,78.59,78.556,11.4664]
[1770957681116,9.38564321,78.589,78.556,11.4664]
[1770957681323,3.55611261,78.59,78.556,11.4664]
[1770957681324,9.38564321,78.588,78.556,11.4664]
[1770957681618,3.55611261,78.59,78.556,11.4664]
[1770957682018,4.1437712,78.591,78.557,3.68506769]
[1770957682225,13.53045042,78.597,78.56,3.68506769]
[1770957682521,3.55611261,78.59,78.56,3.68506769]
[1770957684227,9.38725627,78.6,78.565,3.76100107]
[1770957684427,9.38725627,78.599,78.565,3.76100107]
[1770957684724,9.38725627,78.598,78.565,3.76100107]
[1770957684925,9.38725627,78.597,78.565,3.76100107]
[1770957685127,4.1437712,78.605,78.565,3.76100107]
[1770957685327,9.38861077,78.604,78.565,3.76100107]
[1770957685628,9.38861077,78.603,78.565,3.76100107]
[1770957685823,4.1437712,78.605,78.567,11.4648]
[1770957686024,3.55611261,78.6,78.567,11.4648]
[1770957687933,3.55611261,78.6,78.518,23.7670495]
[1770957687934,1.785e-05,78.609,78.587,3.75794588]
[1770957688232,274.33217746,78.637,78.6,7.31405849]
[1770957688430,4.1437712,78.636,78.6,7.31405849]
[1770957689026,4.1437712,78.636,78.6,3.55611261]
[1770957690340,4.1437712,78.636,78.592,11.4612]
[1770957691139,4.1437712,78.636,78.593,3.56464264]
[1770957696336,4.1437712,78.636,78.6,3.55611261]
[1770957697535,7.74066843,78.63,78.593,3.56464264]
[1770957698327,7.74066843,78.63,78.594,15.06493516]
[1770957699024,7.74066843,78.63,78.595,3.59562585]
[1770957699229,270.18840626,78.637,78.601,3.59562585]
[1770957699740,274.37296208,78.637,78.601,3.59562585]
[1770957700841,274.37296208,78.637,78.602,11.4598]
[1770957701641,4.18455582,78.636,78.602,11.4598]
[1770957701844,4.18455582,78.629,78.594,11.4609]
[1770957710657,4.18455582,78.629,78.594,15.05417809]
[1770957710852,4.18455582,78.629,78.595,3.59327809]
[1770957714068,4.18455582,78.629,78.59,3.5527504]
[1770957714069,4.18455582,78.629,78.596,3.5856558]
[1770957715776,4.18455582,78.629,78.598,3.56657768]
[1770957719569,3.5527504,78.63,78.598,3.56657768]
[1770957719771,3.5527504,78.64,78.606,3.57394284]
[1770957720070,7.73730622,78.64,78.606,3.57394284]
[1770957720463,7.42452156,78.66,78.621,3.57336246]
[1770957720672,3.87177116,78.66,78.621,3.57336246]
[1770957721170,7.42452156,78.66,78.621,3.57336246]
[1770957721771,7.42452156,78.66,78.622,3.50628157]
[1770957722767,7.42452156,78.66,78.567,46.6965495]
[1770957722768,3.87177116,78.679,78.641,3.50628157]
[1770957724472,3.87177116,78.679,78.645,3.48962137]
[1770957725880,3.87177116,78.679,78.647,11.22509937]
[1770957726372,3.87177116,78.659,78.62,3.5527504]
[1770957726778,3.87177116,78.659,78.62,7.0265668]
[1770957726978,3.87177116,78.659,78.621,3.4738164]
[1770957727771,3.87177116,78.659,78.623,3.46350437]
[1770957728782,3.87177116,78.659,78.625,3.46350437]
[1770957729081,3.87177116,78.659,78.63,3.5527504]
[1770957729484,3.5527504,78.68,78.635,3.48320216]
[1770957729776,3.87177116,78.679,78.635,3.48320216]
[1770957729977,3.87177116,78.669,78.63,11.4557]
[1770957730280,3.87177116,78.659,78.62,3.5527504]
[1770957730670,3.87177116,78.659,78.62,7.03595256]
[1770957730874,3.87177116,78.659,78.623,3.48320216]
[1770957731878,3.87177116,78.659,78.628,11.4559]
[1770957734580,3.87177116,78.659,78.623,3.48320216]
[1770957736987,3.87177116,78.659,78.624,11.4565]
[1770957737880,3.87177116,78.659,78.624,15.0116636]
[1770957738283,3.87177116,78.659,78.63,11.4555]
[1770957738889,3.87177116,78.659,78.624,3.5551636]
[1770957740482,3.87177116,78.659,78.611,3.54923632]
[1770957741290,3.87177116,78.659,78.628,11.4559]
[1770957747994,3.87177116,78.672,78.632,3.55275572]
[1770957748294,3.87177116,78.694,78.632,3.55275572]
[1770957748590,3.87177116,78.669,78.63,3.5527504]
[1770957748797,3.87177116,78.669,78.629,3.55275572]
[1770957748998,3.5527504,78.66,78.629,3.55275572]
[1770957749186,7.42452156,78.66,78.629,3.55275572]
[1770957749586,3.87177116,78.659,78.629,3.55275572]
[1770957751003,3.87177116,78.659,78.624,11.4565]
[1770957757902,3.87177116,78.659,78.625,3.55160706]
[1770957759110,9.35570807,78.658,78.625,3.55160706]
[1770957759308,3.87177116,78.659,78.625,3.55160706]
[1770957759309,9.34392127,78.657,78.625,3.55160706]
[1770957759610,3.94960393,78.658,78.616,11.4576]
[1770957760306,3.94960393,78.658,78.616,15.00885989]
[1770957761410,3.94960393,78.649,78.616,3.55125989]
[1770957762408,3.94960393,78.647,78.61,3.5527504]
[1770957762614,3.94960393,78.639,78.611,3.58616921]
[1770957768806,3.94960393,78.639,78.612,11.4582]
[1770957769111,9.3510972,78.648,78.613,3.48594093]
[1770957769311,3.94960393,78.649,78.613,3.48594093]
[1770957769511,9.35177203,78.648,78.613,3.48594093]
[1770957769708,9.35177203,78.647,78.615,11.4578]
[1770957770012,9.35177203,78.646,78.613,3.48594093]
[1770957770213,3.94960393,78.649,78.613,3.48594093]
[1770957770410,9.35186468,78.648,78.62,3.55130879]
[1770957770612,3.94960393,78.66,78.621,3.49187687]
[1770957771715,3.55130879,78.67,78.623,3.45976686]
[1770957771905,9.35276897,78.669,78.623,3.45976686]
[1770957772105,3.94960393,78.667,78.623,3.45976686]
[1770957772311,3.94960393,78.665,78.623,3.45976686]
[1770957772511,3.94960393,78.659,78.623,3.45976686]
[1770957772704,3.94960393,78.657,78.623,3.45976686]
[1770957772904,3.94960393,78.655,78.623,3.45976686]
[1770957773110,13.3023729,78.654,78.623,3.45976686]
[1770957773316,9.35276897,78.653,78.623,3.45976686]
[1770957773612,9.35276897,78.652,78.623,3.45976686]
[1770957773809,3.94960393,78.654,78.623,3.45976686]
[1770957774121,13.30090462,78.653,78.623,3.45976686]
[1770957774410,9.35130069,78.652,78.623,3.45976686]
[1770957774614,3.94960393,78.653,78.623,3.45976686]
[1770957774816,9.35138079,78.652,78.618,11.4574]
[1770957775013,3.94960393,78.653,78.62,3.55130879]
[1770957775212,9.35157957,78.652,78.618,14.90758978]
[1770957775410,13.30086238,78.651,78.61,3.55130879]
[1770957775609,3.94960393,78.65,78.61,3.55130879]
[1770957776011,7.50091272,78.65,78.61,3.55130879]
[1770957776207,3.94960393,78.649,78.612,11.4582]
[1770957776414,3.94960393,78.649,78.613,3.43815646]
[1770957778318,3.94960393,78.647,78.613,3.43815646]
[1770957784018,4.05374948,78.662,78.621,3.48989676]
[1770957784215,13.41153906,78.661,78.621,3.48989676]
[1770957784416,9.35778958,78.66,78.621,3.48989676]
[1770957784613,9.35778958,78.659,78.621,3.48989676]
[1770957784816,9.35778958,78.658,78.621,3.48989676]
[1770957785019,9.35778958,78.657,78.621,3.48989676]
[1770957785323,4.05374948,78.661,78.621,3.48989676]
[1770957785526,9.35940966,78.66,78.621,3.48989676]
[1770957785723,9.35940966,78.659,78.621,3.48989676]
[1770957785924,9.35940966,78.658,78.621,3.48989676]
[1770957786126,9.35940966,78.657,78.621,3.48989676]
[1770957786320,11.4505,78.666,78.621,3.48989676]
[1770957786514,11.4508,78.664,78.621,3.48989676]
[1770957786715,9.35979053,78.663,78.621,3.48989676]
[1770957786919,9.35979053,78.662,78.621,3.48989676]
[1770957787119,9.35979053,78.661,78.621,3.48989676]
[1770957787326,9.35979053,78.66,78.621,3.48989676]
[1770957787627,9.35979053,78.659,78.621,3.48989676]
[1770957787818,4.05374948,78.663,78.621,3.48989676]
[1770957788019,9.35991478,78.662,78.621,3.48989676]
[1770957788225,4.05374948,78.659,78.621,3.48989676]
[1770957788422,4.05374948,78.657,78.621,3.48989676]
[1770957788922,3.55130879,78.65,78.612,3.47554017]
[1770957789118,4.05374948,78.66,78.63,3.55130879]
[1770957789321,4.05374948,78.66,78.631,3.47554017]
[1770957790019,9.36213897,78.669,78.631,3.47554017]
[1770957790325,9.36213897,78.668,78.631,3.47554017]
[1770957790530,9.36146655,78.674,78.631,3.47554017]
[1770957790826,4.05374948,78.672,78.631,3.47554017]
[1770957791829,4.05374948,78.669,78.631,3.47554017]
[1770957792722,4.05374948,78.667,78.631,3.47554017]
[1770957792927,4.05374948,78.665,78.631,3.47554017]
[1770957793323,4.05374948,78.665,78.63,15.00700879]
[1770957793526,4.05374948,78.663,78.63,15.00700879]
[1770957795926,4.05374948,78.663,78.63,11.4557]
[1770957796132,4.05374948,78.659,78.622,14.94256651]
[1770957797527,4.05374948,78.659,78.623,3.48939062]
[1770957802446,4.05374948,78.649,78.61,3.55130879]
[1770957802739,4.05374948,78.649,78.606,11.4591]
[1770957802740,4.05374948,78.639,78.591,3.46974366]
[1770957802934,3.55130879,78.64,78.591,3.46974366]
[1770957802935,4.05374948,78.637,78.591,3.46974366]
[1770957803142,4.05374948,78.619,78.58,7.02387128]
[1770957803340,3.55130879,78.62,78.58,7.02387128]
[1770957803341,4.05374948,78.617,78.58,7.02387128]
[1770957803545,9.33288864,78.616,78.58,7.02387128]
[1770957803742,4.05374948,78.617,78.58,7.02387128]
[1770957803941,4.05374948,78.617,78.581,14.93536249]
[1770957806234,4.05374948,78.617,78.582,3.5081954]
[1770957808342,3.55130879,78.62,78.582,3.5081954]
[1770957808845,4.05374948,78.626,78.591,3.49405734]
[1770957809544,3.55130879,78.63,78.591,3.49405734]
[1770957810331,7.60505827,78.63,78.591,3.49405734]
[1770957812443,4.05374948,78.63,78.593,3.36425849]
[1770957812743,7.60505827,78.63,78.593,3.36425849]
[1770957813439,4.20328411,78.629,78.593,3.36425849]
[1770957813643,4.20328411,78.629,78.584,11.4623]
[1770957813836,3.89898922,78.619,78.58,3.55130879]
[1770957814043,3.89898922,78.619,78.58,6.88694833]
[1770957814233,3.89898922,78.634,78.59,6.88694833]
[1770957814433,3.89898922,78.634,78.591,3.33563954]
[1770957815036,3.89898922,78.634,78.6,3.55130879]
[1770957815445,3.89898922,78.634,78.591,3.33563954]
[1770957815945,3.89898922,78.634,78.598,11.4602]
[1770957817139,3.89898922,78.634,78.591,3.33563954]
[1770957817940,3.89898922,78.634,78.601,11.4599]
[1770957820240,3.89898922,78.634,78.592,11.4611]
[1770957820437,3.89898922,78.634,78.592,14.84727338]
[1770957821440,3.89898922,78.634,78.59,3.55130879]
[1770957821441,3.89898922,78.629,78.59,3.55130879]
[1770957822045,3.89898922,78.629,78.584,14.88731028]
[1770957823345,3.89898922,78.619,78.584,11.4623]
[1770957823548,3.89898922,78.609,78.554,3.43735735]
[1770957823848,3.89898922,78.589,78.55,3.55130879]
[1770957824048,3.89898922,78.589,78.551,3.43735735]
[1770957825540,3.89898922,78.608,78.57,3.55620803]
[1770957825742,3.89898922,78.608,78.571,3.37501578]
[1770957826141,3.89898922,78.622,78.581,3.37501578]
[1770957826345,3.89898922,78.622,78.59,3.55620803]
[1770957827144,3.89898922,78.622,78.581,3.37501578]
[1770957827351,3.89898922,78.619,78.58,15.01920803]
[1770957830252,38.19,78.654,78.514,12.72]
[1770957830253,3.89898922,78.634,78.6,6.70056347]
[1770957830451,3.89898922,78.649,78.601,3.14435544]
[1770957831152,15.00750803,78.66,78.62,3.55620803]
[1770957831352,3.89898922,78.661,78.62,6.70001535]
[1770957831555,7.45519725,78.66,78.62,6.70001535]
[1770957831751,3.89898922,78.659,78.62,6.70001535]
[1770957835848,3.89898922,78.659,78.566,23.7670495]
[1770957835849,3.89898922,78.639,78.6,3.55620803]
[1770957836358,3.89898922,78.629,78.58,6.69826217]
[1770957836553,11.72313061,78.679,78.58,6.69826217]
[1770957836554,3.89898922,78.619,78.58,3.14205414]
[1770957837155,3.89898922,78.619,78.58,6.69826217]
[1770957838755,3.89898922,78.635,78.591,3.19285029]
[1770957838953,3.89898922,78.635,78.6,3.55620803]
[1770957840561,3.89898922,78.635,78.595,11.4607]
[1770957841067,3.55620803,78.62,78.58,3.55620803]
[1770957841257,7.68319211,78.62,78.58,3.55620803]
[1770957841563,4.12698408,78.633,78.591,3.22490541]
[1770957842555,4.12698408,78.629,78.591,3.22490541]
[1770957844663,4.12698408,78.619,78.58,3.55620803]
[1770957845864,4.12698408,78.619,78.577,3.24023669]
[1770957847464,4.12698408,78.619,78.58,3.55620803]
[1770957848170,4.12698408,78.619,78.577,3.24023669]
[1770957849473,7.68319211,78.61,78.57,3.55620803]
[1770957849968,4.12698408,78.609,78.565,14.67148572]
[1770957850168,4.12698408,78.609,78.485,39.51242593]